bitfinex-derivatives/quotes_BTCF0:USTF0_20250209
["timestamp","ask_amount","ask_price","bid_price","bid_amount"]
[1739101507019,0.05429725,96660.0,96648.0,0.3608]
[1739101507219,0.0314,96659.0,96648.0,0.3608]
[1739101508318,0.0314,96659.0,96649.0,0.001]
[1739101508825,0.0314,96659.0,96648.0,0.3608]
[1739101509019,0.0314,96659.0,96648.0,0.3618]
[1739101509325,0.23519613,96658.0,96648.0,0.3618]
[1739101509521,0.23519613,96658.0,96649.0,0.001]
[1739101510124,0.23519613,96658.0,96648.0,0.3618]
[1739101510526,0.23619613,96658.0,96649.0,0.0313]
[1739101511415,0.22410159,96658.0,96649.0,0.0313]
[1739101511926,0.22310159,96658.0,96648.0,0.3608]
[1739101513118,0.22410159,96658.0,96648.0,0.3608]
[1739101513424,0.22410159,96658.0,96648.0,0.3618]
[1739101514516,0.22310159,96657.0,96648.0,0.3618]
[1739101515627,0.22410159,96657.0,96648.0,0.3618]
[1739101516027,0.22410159,96657.0,96649.0,1.5]
[1739101516513,0.22410159,96657.0,96649.0,1.5328]
[1739101516718,0.001,96657.0,96649.0,1.5328]
[1739101517523,0.001,96657.0,96649.0,0.0328]
[1739101517826,0.001,96657.0,96656.0,0.3608]
[1739101518024,0.001,96657.0,96656.0,1.8608]
[1739101518335,0.21598295,96660.0,96656.0,1.8608]
[1739101518627,0.21598295,96660.0,96656.0,0.3608]
[1739101518824,0.21598295,96660.0,96657.0,0.0302]
[1739101519732,0.21898295,96660.0,96657.0,0.0302]
[1739101520449,0.05029725,96659.0,96657.0,0.0302]
[1739101521830,0.05329725,96659.0,96657.0,0.04018887]
[1739101524042,0.05329725,96659.0,96658.0,0.0698]
[1739101524238,0.003,96659.0,96657.0,0.04018887]
[1739101524446,0.003,96659.0,96658.0,0.0698]
[1739101525243,0.004,96659.0,96658.0,0.0698]
[1739101525841,0.001,96659.0,96658.0,0.0698]
[1739101526031,0.004,96659.0,96658.0,0.0698]
[1739101527144,0.004,96659.0,96658.0,0.37143637]
[1739101527346,0.21598295,96676.0,96658.0,0.73223637]
[1739101527657,0.15570841,96676.0,96667.0,0.3608]
[1739101527844,0.15570841,96676.0,96668.0,0.0301]
[1739101528647,0.15570841,96676.0,96675.0,0.3608]
[1739101528950,0.15570841,96676.0,96675.0,0.43064]
[1739101529151,0.15670841,96676.0,96675.0,0.43064]
[1739101529650,0.001,96676.0,96675.0,0.43064]
[1739101530350,0.001,96676.0,96675.0,0.06972]
[1739101530652,0.001,96676.0,96672.0,0.06988]
[1739101530952,0.033,96681.0,96672.0,0.06988]
[1739101531151,0.004,96676.0,96672.0,0.06988]
[1739101532146,0.001,96676.0,96672.0,0.06988]
[1739101533354,0.034,96681.0,96672.0,0.06988]
[1739101533553,0.034,96681.0,96672.0,0.07088]
[1739101533746,0.033,96681.0,96672.0,0.07088]
[1739101533950,0.002,96676.0,96672.0,0.07088]
[1739101534553,0.08528914,96681.0,96672.0,0.07088]
[1739101535052,0.3608,96674.0,96672.0,0.001]
[1739101535453,0.0632,96673.0,96672.0,0.001]
[1739101536655,0.11348914,96673.0,96672.0,0.001]
[1739101537550,0.11348914,96673.0,96650.0,0.06972]
[1739101537755,0.3608,96663.0,96650.0,0.06972]
[1739101539250,0.3608,96663.0,96662.0,0.00215514]
[1739101540157,0.3608,96663.0,96658.0,0.00077459]
[1739101540347,0.0302,96662.0,96658.0,0.00077459]
[1739101541554,0.0302,96662.0,96650.0,0.06972]
[1739101541957,0.0302,96662.0,96658.0,0.003]
[1739101543352,0.0312,96662.0,96658.0,0.003]
[1739101543947,0.0302,96662.0,96655.0,0.06972]
[1739101544150,0.0312,96662.0,96658.0,0.002]
[1739101544547,0.0312,96662.0,96655.0,0.06972]
[1739101544747,0.0312,96662.0,96658.0,0.002]
[1739101545260,0.05028914,96661.0,96658.0,0.002]
[1739101545852,0.05028914,96661.0,96655.0,0.06972]
[1739101545853,0.05028914,96661.0,96655.0,0.003]
[1739101547562,0.05128914,96661.0,96658.0,0.002]
[1739101548658,0.05128914,96661.0,96655.0,0.003]
[1739101549663,0.05128914,96661.0,96656.0,0.06996]
[1739101549864,0.05128914,96661.0,96658.0,0.3608]
[1739101550065,0.05028914,96660.0,96658.0,0.3608]
[1739101550856,0.05028914,96660.0,96658.0,0.3618]
[1739101551567,0.05128914,96660.0,96658.0,0.3618]
[1739101552659,0.05128914,96660.0,96658.0,0.3608]
[1739101552967,0.001,96660.0,96658.0,0.3618]
[1739101559367,0.18548442,96669.0,96665.0,0.3608]
[1739101559867,0.18448442,96669.0,96665.0,0.3608]
[1739101561261,0.18648442,96669.0,96665.0,0.3608]
[1739101561663,0.18448442,96669.0,96665.0,0.3608]
[1739101561865,0.18548442,96669.0,96665.0,0.3608]
[1739101562065,0.21517213,96668.0,96665.0,0.3608]
[1739101562370,0.21517213,96668.0,96665.0,0.14352027]
[1739101564672,0.21617213,96668.0,96665.0,0.14352027]
[1739101565071,0.13534117,96673.0,96666.0,0.00077459]
[1739101565271,0.14139383,96679.0,96672.0,0.3608]
[1739101565467,0.14139383,96679.0,96677.0,0.3608]
[1739101566063,0.14139383,96679.0,96678.0,1.5]
[1739101566470,0.3608,96702.0,96678.0,1.5]
[1739101566471,0.00056001,96686.0,96678.0,1.5]
[1739101566766,0.18474134,96687.0,96679.0,0.1011]
[1739101567366,0.18474134,96687.0,96679.0,0.0315]
[1739101567662,0.00215514,96682.0,96680.0,0.06956]
[1739101569270,0.00215514,96682.0,96681.0,0.06984]
[1739101570161,0.00015514,96682.0,96681.0,0.06984]
[1739101570368,0.00315514,96682.0,96681.0,0.06984]
[1739101570768,0.00015514,96682.0,96681.0,0.06984]
[1739101570974,0.00315514,96682.0,96681.0,0.06988]
[1739101572066,0.00415514,96682.0,96681.0,0.06988]
[1739101578876,0.00415514,96682.0,96681.0,1.56988]
[1739101583271,0.00415514,96682.0,96681.0,1.57065459]
[1739101585174,0.0327,96699.0,96681.0,1.57065459]
[1739101585373,0.0327,96699.0,96689.0,0.3608]
[1739101586381,0.0417,96699.0,96689.0,0.3608]
[1739101587081,0.0477,96699.0,96690.0,0.0308]
[1739101587282,0.05027478,96698.0,96690.0,0.0308]
[1739101589176,0.05327478,96698.0,96690.0,0.0308]
[1739101589576,0.05827478,96698.0,96690.0,0.0308]
[1739101591484,0.23501612,96697.0,96690.0,0.0308]
[1739101591680,0.23501612,96697.0,96690.0,0.04096564]
[1739101592184,0.23501612,96697.0,96690.0,0.01294923]
[1739101592384,0.23501612,96697.0,96690.0,0.01016564]
[1739101592579,0.23501612,96697.0,96686.0,0.3608]
[1739101592771,0.24001612,96697.0,96686.0,0.3608]
[1739101593690,0.23501612,96697.0,96686.0,0.3608]
[1739101593892,0.24001612,96697.0,96686.0,0.37103443]
[1739101594493,0.008,96697.0,96686.0,0.37103443]
[1739101597181,0.008,96697.0,96687.0,0.06948]
[1739101598091,0.3608,96691.0,96687.0,0.06948]
[1739101598783,0.3608,96691.0,96688.0,0.0694]
[1739101599893,0.3628,96691.0,96688.0,0.0694]
[1739101600791,0.3628,96691.0,96684.0,0.00015514]
[1739101600994,0.3628,96691.0,96685.0,0.06936]
[1739101601786,0.3628,96691.0,96684.0,0.00015514]
[1739101601987,0.3608,96691.0,96684.0,0.00015514]
[1739101602192,0.3628,96691.0,96684.0,0.00015514]
[1739101602893,0.18474134,96689.0,96684.0,0.00015514]
[1739101604687,0.18474134,96689.0,96684.0,0.00115514]
[1739101605189,0.18674134,96689.0,96684.0,0.00115514]
[1739101606397,0.002,96689.0,96684.0,0.00115514]
[1739101607187,0.002,96689.0,96684.0,9.416e-05]
[1739101611096,0.3608,96686.0,96684.0,9.416e-05]
[1739101611399,0.0326,96685.0,96684.0,9.416e-05]
[1739101613792,0.0326,96685.0,96678.0,0.01005585]
[1739101613994,0.0326,96685.0,96677.0,0.06924]
[1739101614493,0.0326,96685.0,96677.0,0.07917136]
[1739101615000,0.18496249,96695.0,96677.0,0.07917136]
[1739101615500,0.002,96685.0,96677.0,0.07917136]
[1739101616897,0.002,96685.0,96678.0,1.5]
[1739101617199,0.3608,96690.0,96678.0,1.5]
[1739101617599,0.05028217,96684.0,96678.0,1.5]
[1739101619202,0.05228217,96684.0,96678.0,1.5]
[1739101619601,0.05228217,96684.0,96677.0,0.07917136]
[1739101620804,0.05028217,96683.0,96677.0,0.07917136]
[1739101623205,0.05228217,96683.0,96677.0,0.07917136]
[1739101624314,0.002,96683.0,96677.0,0.07917136]
[1739101625501,0.002,96683.0,96678.0,1.5]
[1739101626001,0.002,96683.0,96679.0,0.0307]
[1739101626604,0.18496249,96698.0,96679.0,0.0307]
[1739101626802,0.002,96683.0,96679.0,0.0307]
[1739101627207,0.05027499,96701.0,96680.0,0.00077459]
[1739101627404,0.05027499,96701.0,96687.0,0.3608]
[1739101627605,0.05027499,96701.0,96688.0,0.064]
[1739101628009,0.05027499,96701.0,96695.0,0.3608]
[1739101628220,0.05027499,96701.0,96696.0,0.06876]
[1739101628720,0.05927499,96701.0,96696.0,0.06876]
[1739101628913,0.06827499,96701.0,96696.0,0.06876]
[1739101629315,0.06827499,96701.0,96697.0,0.0328]
[1739101629617,0.05927499,96701.0,96697.0,0.0328]
[1739101631009,0.05027499,96701.0,96698.0,1.5]
[1739101631410,0.00015514,96704.0,96697.0,0.01031105]
[1739101631606,0.0321,96700.0,96696.0,0.06876]
[1739101632220,0.0321,96700.0,96696.0,0.07883844]
[1739101632417,0.00015514,96704.0,96696.0,0.07883844]
[1739101633620,0.00015514,96704.0,96697.0,0.06872]
[1739101635026,0.36095514,96704.0,96697.0,0.06872]
[1739101635227,0.0645,96703.0,96697.0,0.06872]
[1739101635620,0.00015514,96704.0,96697.0,0.06872]
[1739101639520,0.00015514,96704.0,96698.0,1.5]
[1739101639726,0.00015514,96704.0,96697.0,0.06872]
[1739101639928,0.00015514,96704.0,96698.0,0.06876]
[1739101647135,0.00015514,96704.0,96699.0,1.5]
[1739101648535,0.00115514,96704.0,96699.0,1.5]
[1739101648930,0.0331,96703.0,96699.0,1.5]
[1739101649738,0.0331,96703.0,96698.0,0.06876]
[1739101650238,0.0331,96703.0,96698.0,1.56876]
[1739101650738,0.064,96703.0,96698.0,0.06876]
[1739101652342,0.065,96703.0,96698.0,0.06876]
[1739101653037,0.064,96703.0,96698.0,0.06876]
[1739101655034,0.0331,96703.0,96698.0,0.06876]
[1739101656243,0.05027195,96702.0,96698.0,0.06876]
[1739101659545,0.18496249,96701.0,96698.0,0.06876]
[1739101661038,0.18496249,96701.0,96699.0,1.5]
[1739101662648,0.18496249,96701.0,96700.0,0.3608]
[1739101662848,0.18596249,96701.0,96700.0,0.3608]
[1739101663144,0.001,96701.0,96700.0,0.3608]
[1739101663338,0.001,96701.0,96700.0,1.8608]
[1739101664658,0.00015514,96704.0,96700.0,1.8608]
[1739101664843,0.001,96701.0,96700.0,0.3608]
[1739101665849,0.00115514,96704.0,96700.0,0.3608]
[1739101666348,0.001,96701.0,96700.0,0.3608]
[1739101666543,0.001,96701.0,96698.0,1.56928]
[1739101666744,0.001,96701.0,96698.0,1.56876]
[1739101668246,0.00115514,96704.0,96698.0,1.56876]
[1739101668746,0.00015514,96704.0,96698.0,1.56876]
[1739101673258,0.00015514,96704.0,96699.0,0.06816]
[1739101674751,0.00115514,96704.0,96699.0,0.06816]
[1739101675760,0.05026779,96703.0,96699.0,0.06816]
[1739101676064,0.05026779,96703.0,96700.0,0.06808]
[1739101678463,0.05126779,96703.0,96700.0,0.06808]
[1739101680055,0.23623028,96703.0,96700.0,0.06808]
[1739101680566,0.23623028,96703.0,96701.0,0.3608]
[1739101682065,0.23723028,96703.0,96701.0,0.3608]
[1739101683065,0.23723028,96703.0,96700.0,0.06808]
[1739101683268,0.23723028,96703.0,96702.0,0.3608]
[1739101683966,0.23723028,96703.0,96700.0,0.06808]
[1739101684158,0.23723028,96703.0,96702.0,0.3608]
[1739101684353,0.18696249,96703.0,96702.0,0.3608]
[1739101684558,0.00015514,96704.0,96702.0,0.3608]
[1739101684760,0.002,96703.0,96702.0,0.3608]
[1739101684956,0.002,96703.0,96700.0,0.06808]
[1739101685160,0.002,96703.0,96702.0,0.3608]
[1739101686165,0.00015514,96704.0,96702.0,0.3608]
[1739101686466,0.00215514,96704.0,96702.0,0.3608]
[1739101687875,0.00015514,96704.0,96702.0,0.3608]
[1739101688058,0.002,96703.0,96702.0,0.3608]
[1739101688468,0.00015514,96704.0,96702.0,0.3608]
[1739101688668,0.00215514,96704.0,96702.0,0.3608]
[1739101689070,0.00015514,96704.0,96702.0,0.3608]
[1739101689374,0.002,96703.0,96702.0,0.3608]
[1739101690777,0.00215514,96704.0,96702.0,0.3608]
[1739101691369,0.002,96703.0,96702.0,0.3608]
[1739101692475,0.00215514,96704.0,96702.0,0.3608]
[1739101692677,0.05026663,96703.0,96702.0,0.3608]
[1739101694177,0.05226663,96703.0,96702.0,0.3608]
[1739101696869,0.002,96703.0,96702.0,0.3608]
[1739101701577,0.002,96703.0,96700.0,0.25369458]
[1739101701781,0.002,96703.0,96702.0,0.3608]
[1739101704181,0.002,96703.0,96700.0,0.06808]
[1739101704376,0.002,96703.0,96702.0,0.3608]
[1739101707376,0.05226663,96703.0,96702.0,0.3608]
[1739101710685,0.05226663,96703.0,96700.0,0.06808]
[1739101710889,0.05226663,96703.0,96702.0,0.3608]
[1739101715291,0.002,96703.0,96702.0,0.4288]
[1739101717988,0.002,96703.0,96702.0,0.42876]
[1739101718682,0.002,96703.0,96702.0,0.06796]
[1739101720383,0.002,96703.0,96700.0,0.3608]
[1739101720588,0.0324,96702.0,96701.0,0.06796]
[1739101722290,0.0344,96702.0,96701.0,0.06796]
[1739101723394,0.0344,96702.0,96701.0,1.56796]
[1739101724996,0.0344,96702.0,96700.0,0.3608]
[1739101725186,0.0331,96701.0,96700.0,0.3608]
[1739101725886,0.0331,96701.0,96700.0,1.8608]
[1739101727493,0.0341,96701.0,96700.0,1.8608]
[1739101729491,0.08436971,96701.0,96700.0,1.8608]
[1739101730694,0.08436971,96701.0,96700.0,1.5]
[1739101735105,0.05126971,96701.0,96700.0,1.5]
[1739101737201,0.001,96701.0,96700.0,1.5]
[1739101737595,0.001,96701.0,96700.0,1.56768]
[1739101757012,0.00015514,96704.0,96700.0,1.56768]
[1739101759427,0.00015514,96704.0,96699.0,0.18561458]
[1739101759629,0.00015514,96704.0,96700.0,0.0672]
[1739101760330,0.3608,96701.0,96700.0,0.0672]
[1739101760919,0.3608,96701.0,96699.0,0.18561458]
[1739101761125,0.0312,96700.0,96699.0,0.18561458]
[1739101761532,0.0312,96700.0,96697.0,0.18561458]
[1739101761834,0.0333,96699.0,96697.0,0.18561458]
[1739101763038,0.0333,96699.0,96697.0,0.18661458]
[1739101765935,0.23523971,96698.0,96697.0,0.001]
[1739101766335,0.59603971,96698.0,96697.0,0.001]
[1739101767539,0.59603971,96698.0,96676.0,0.18561458]
[1739101767735,0.3608,96679.0,96676.0,0.18561458]
[1739101767932,0.0924,96678.0,96676.0,0.19797154]
[1739101769037,0.0924,96678.0,96676.0,0.01235696]
[1739101769239,0.0924,96678.0,96676.0,0.009]
[1739101770340,0.0934,96678.0,96676.0,0.009]
[1739101770736,0.0934,96678.0,96669.0,0.0796478]
[1739101770942,0.0944,96678.0,96669.0,0.0796478]
[1739101771944,0.3608,96676.0,96669.0,0.0886478]
[1739101772431,0.3608,96676.0,96669.0,0.0796478]
[1739101772633,0.3608,96676.0,96670.0,0.06744]
[1739101773038,0.0944,96678.0,96670.0,0.06744]
[1739101773344,0.3608,96677.0,96670.0,0.06744]
[1739101774337,0.0337,96678.0,96670.0,0.06744]
[1739101774534,0.0327,96678.0,96670.0,0.06744]
[1739101774735,0.001,96676.0,96670.0,0.06744]
[1739101775236,0.001,96677.0,96670.0,0.07244]
[1739101775636,0.001,96677.0,96670.0,0.06744]
[1739101775843,0.39422,96678.0,96670.0,0.07244]
[1739101775844,0.39522,96678.0,96670.0,0.07244]
[1739101776037,0.3945,96678.0,96670.0,0.07244]
[1739101777039,0.0337,96678.0,96670.0,0.07244]
[1739101778042,0.0337,96678.0,96670.0,0.06744]
[1739101778043,0.001,96677.0,96670.0,0.06744]
[1739101778544,0.0337,96678.0,96670.0,0.06744]
[1739101779048,0.0327,96678.0,96670.0,0.06744]
[1739101779249,0.001,96677.0,96670.0,0.06744]
[1739101780547,0.002,96677.0,96670.0,0.06744]
[1739101781340,0.001,96677.0,96670.0,0.07344]
[1739101781935,0.002,96677.0,96670.0,0.07344]
[1739101783749,0.002,96677.0,96670.0,0.10534]
[1739101785048,0.002,96677.0,96671.0,0.0326]
[1739101785438,0.002,96677.0,96672.0,0.0332]
[1739101786041,0.001,96677.0,96672.0,0.0332]
[1739101786242,0.002,96677.0,96672.0,0.0332]
[1739101787448,0.001,96677.0,96672.0,0.0332]
[1739101787650,0.002,96677.0,96672.0,0.0332]
[1739101787851,0.002,96677.0,96672.0,0.0392]
[1739101788644,0.34830779,96682.0,96672.0,0.0392]
[1739101789051,0.001,96677.0,96672.0,0.0392]
[1739101789745,0.002,96677.0,96672.0,0.22581458]
[1739101790850,0.002,96677.0,96673.0,0.3608]
[1739101791155,0.001,96677.0,96673.0,0.3608]
[1739101791553,0.002,96677.0,96673.0,0.3608]
[1739101792140,0.002,96677.0,96673.0,0.3678]
[1739101792956,0.002,96677.0,96673.0,0.3698]
[1739101793857,0.002,96677.0,96676.0,0.24743346]
[1739101794154,0.001,96677.0,96676.0,0.24743346]
[1739101795854,0.00015514,96683.0,96676.0,0.24743346]
[1739101796057,0.002,96677.0,96676.0,0.25443346]
[1739101796645,0.001,96677.0,96676.0,0.25443346]
[1739101796850,0.002,96677.0,96676.0,0.25443346]
[1739101797461,0.001,96677.0,96676.0,0.19401385]
[1739101798159,0.002,96677.0,96676.0,0.19301385]
[1739101798854,0.002,96677.0,96676.0,0.19201385]
[1739101798855,0.001,96677.0,96676.0,0.19201385]
[1739101799056,0.002,96677.0,96676.0,0.19301385]
[1739101800261,0.002,96677.0,96676.0,0.007]
[1739101802062,0.0329,96693.0,96676.0,0.5878]
[1739101802251,0.00155182,96700.0,96690.0,0.3608]
[1739101802450,0.00155182,96700.0,96691.0,0.0674]
[1739101803252,0.001,96693.0,96691.0,0.0674]
[1739101803964,0.00255182,96700.0,96691.0,0.0684]
[1739101804963,0.00255182,96700.0,96691.0,0.08017488]
[1739101805367,0.00255182,96700.0,96698.0,0.3608]
[1739101805662,0.00155182,96700.0,96698.0,0.3608]
[1739101806555,0.00255182,96700.0,96698.0,0.3608]
[1739101808063,0.00455182,96700.0,96698.0,0.3608]
[1739101808457,0.00355182,96700.0,96698.0,0.3618]
[1739101809669,0.00355182,96700.0,96698.0,0.001]
[1739101816473,0.0323,96699.0,96698.0,0.001]
[1739101818474,0.0343,96699.0,96698.0,0.001]
[1739101820670,0.0343,96699.0,96698.0,0.06824]
[1739101822280,0.0343,96699.0,96698.0,0.001]
[1739101822468,0.0343,96699.0,96698.0,0.0682]
[1739101849499,0.08457355,96699.0,96698.0,0.0682]
[1739101857696,0.0343,96699.0,96698.0,0.0682]
[1739101860803,0.0343,96699.0,96698.0,0.068]
[1739101861807,0.0343,96699.0,96698.0,0.001]
[1739101862205,0.0343,96699.0,96693.0,0.18584749]
[1739101862511,0.3608,96694.0,96693.0,0.18584749]
[1739101863611,0.3608,96694.0,96693.0,0.18784749]
[1739101864905,0.3608,96694.0,96693.0,0.18584749]
[1739101865115,0.3608,96694.0,96693.0,0.18684749]
[1739101865412,0.411074,96694.0,96693.0,0.001]
[1739101868618,0.3608,96694.0,96693.0,0.001]
[1739101874209,0.5675865,96694.0,96693.0,0.001]
[1739101874915,0.61786592,96694.0,96693.0,0.001]
[1739101875216,0.206795,96690.0,96689.0,0.00015514]
[1739101875516,0.567595,96690.0,96689.0,0.00015514]
[1739101877314,0.568595,96690.0,96689.0,0.00015514]
[1739101877615,0.568595,96690.0,96689.0,0.00115514]
[1739101877914,0.61887442,96690.0,96689.0,0.00115514]
[1739101878316,0.61887442,96690.0,96689.0,0.00102349]
[1739101879719,0.97967442,96690.0,96689.0,0.00102349]
[1739101880218,0.99122377,96690.0,96689.0,0.00102349]
[1739101880906,0.97967442,96690.0,96689.0,0.00102349]
[1739101888529,0.77287942,96690.0,96681.0,0.82904249]
[1739101888828,0.3608,96682.0,96681.0,0.82904249]
[1739101890529,0.3608,96682.0,96681.0,0.83304249]
[1739101891122,0.3618,96682.0,96681.0,0.83304249]
[1739101892333,0.3618,96682.0,96681.0,0.84462252]
[1739101894136,0.3618,96682.0,96681.0,0.63780922]
[1739101895221,0.3618,96682.0,96681.0,0.70484922]
[1739101899537,0.3618,96682.0,96681.0,0.08262003]
[1739101905237,0.001,96682.0,96681.0,0.08262003]
[1739101905534,0.3618,96682.0,96681.0,0.08262003]
[1739101906726,0.001,96682.0,96681.0,0.08262003]
[1739101906928,0.3618,96682.0,96681.0,0.08262003]
[1739101912538,0.41208627,96682.0,96681.0,0.08262003]
[1739101912950,0.05128627,96682.0,96681.0,0.08262003]
[1739101913236,0.41208627,96682.0,96681.0,0.08262003]
[1739101920235,0.3618,96682.0,96681.0,0.08262003]
[1739101923830,0.54644063,96682.0,96681.0,0.08262003]
[1739101927436,0.41208594,96682.0,96681.0,0.08262003]
[1739101928838,0.05128594,96682.0,96681.0,0.08262003]
[1739101929134,0.41208594,96682.0,96681.0,0.08262003]
[1739101931345,0.61889804,96682.0,96681.0,0.08262003]
[1739101934243,0.41208594,96682.0,96681.0,0.28943423]
[1739101936747,0.05128594,96682.0,96681.0,0.28943423]
[1739101937747,0.001,96682.0,96681.0,0.28943423]
[1739101942738,0.2078121,96682.0,96681.0,0.08322003]
[1739101942940,0.25809631,96682.0,96681.0,0.08322003]
[1739101944144,0.25809631,96682.0,96681.0,0.01558003]
[1739101944337,0.25809631,96682.0,96669.0,0.18584749]
[1739101944338,0.05128421,96682.0,96669.0,0.18584749]
[1739101944541,0.5676377,96670.0,96669.0,0.20002267]
[1739101945951,0.5676377,96670.0,96669.0,0.41086257]
[1739101945952,0.3618,96670.0,96669.0,0.41086257]
[1739101946750,0.3628,96670.0,96669.0,0.41086257]
[1739101947438,0.002,96670.0,96669.0,0.22501508]
[1739101953056,0.002,96670.0,96669.0,0.01817518]
[1739101954055,0.0635,96670.0,96669.0,0.01817518]
[1739101956554,0.0635,96670.0,96669.0,0.07164]
[1739101956555,0.2703377,96670.0,96669.0,0.07164]
[1739101956951,0.2703377,96670.0,96669.0,0.004]
[1739101961663,0.6311377,96670.0,96669.0,0.004]
[1739101961866,0.68143059,96670.0,96669.0,0.004]
[1739101963274,0.47459289,96670.0,96666.0,0.00613827]
[1739101963472,0.2068441,96667.0,96666.0,0.00613827]
[1739101964580,0.2068484,96665.0,96664.0,0.76532]
[1739101964876,0.2068484,96665.0,96664.0,0.7648]
[1739101965271,0.5676484,96665.0,96664.0,0.7648]
[1739101966276,0.5686484,96665.0,96664.0,0.7648]
[1739101966472,0.5696484,96665.0,96664.0,0.7648]
[1739101966662,0.3628,96665.0,96650.0,0.06808]
[1739101966868,0.3608,96651.0,96650.0,0.06808]
[1739101967270,0.3608,96651.0,96650.0,0.0826584]
[1739101967580,0.5676783,96651.0,96650.0,0.0826584]
[1739101968280,0.5676783,96651.0,96650.0,0.06808]
[1739101969068,0.5686783,96651.0,96650.0,0.06808]
[1739101969875,0.5696783,96651.0,96650.0,0.06808]
[1739101970270,0.5696783,96651.0,96649.0,0.01443685]
[1739101970271,0.2068805,96650.0,96649.0,0.01443685]
[1739101970476,0.2068875,96647.0,96645.0,0.068]
[1739101971178,0.36352,96651.0,96638.0,0.01444046]
[1739101971484,0.3608,96643.0,96642.0,0.068]
[1739101972682,0.3618,96643.0,96642.0,0.068]
[1739101972886,0.3628,96643.0,96635.0,0.25349151]
[1739101973073,0.5696959,96643.0,96636.0,0.06796]
[1739101973275,0.2069005,96641.0,96636.0,0.06796]
[1739101973581,0.36356,96643.0,96636.0,0.06796]
[1739101973907,0.3628,96643.0,96636.0,0.06796]
[1739101974687,0.3628,96643.0,96636.0,0.2748693]
[1739101974983,0.3628,96643.0,96637.0,0.2748673]
[1739101976186,0.3618,96643.0,96637.0,0.2748673]
[1739101976383,0.3628,96643.0,96637.0,0.2748673]
[1739101979086,0.3628,96643.0,96638.0,0.2069055]
[1739101980180,0.3628,96643.0,96639.0,0.2069034]
[1739101980497,0.002,96643.0,96642.0,0.2068976]
[1739101981392,0.001,96643.0,96642.0,0.2068976]
[1739101981583,0.002,96643.0,96642.0,0.2068976]
[1739101981983,0.001,96643.0,96642.0,0.2068976]
[1739101982185,0.002,96643.0,96642.0,0.2068976]
[1739101982386,0.001,96643.0,96642.0,0.2068976]
[1739101982589,0.002,96643.0,96642.0,0.2068976]
[1739101987988,0.00015514,96660.0,96650.0,0.2068805]
[1739101988193,0.00015514,96660.0,96652.0,0.3608]
[1739101988391,0.00015514,96660.0,96659.0,0.2068612]
[1739101989293,0.00215514,96660.0,96659.0,0.2068612]
[1739101992089,0.00215514,96660.0,96659.0,0.2204722]
[1739102000492,0.00215514,96660.0,96659.0,1.7204722]
[1739102001287,0.00215514,96660.0,96659.0,0.2204722]
[1739102007408,0.00215514,96660.0,96659.0,0.5812722]
[1739102007710,0.00215514,96660.0,96659.0,0.2204722]
[1739102007911,0.00215514,96660.0,96659.0,0.5812722]
[1739102010810,0.00215514,96660.0,96659.0,0.2204722]
[1739102011010,0.00215514,96660.0,96659.0,0.5812722]
[1739102012302,0.00215514,96660.0,96659.0,0.6491122]
[1739102012712,0.00215514,96660.0,96659.0,0.2883122]
[1739102012911,0.00215514,96660.0,96659.0,0.6491122]
[1739102013808,0.0318,96674.0,96672.0,0.2068334]
[1739102014013,0.0318,96674.0,96673.0,0.06836]
[1739102014903,0.0328,96674.0,96673.0,0.06836]
[1739102015411,0.21762364,96674.0,96673.0,0.07036]
[1739102015608,0.21662364,96674.0,96673.0,0.07036]
[1739102015813,0.21762364,96674.0,96673.0,0.07136]
[1739102017414,0.18582364,96674.0,96673.0,0.07136]
[1739102018814,0.18582364,96674.0,96673.0,0.43216]
[1739102019509,0.18582364,96674.0,96673.0,0.44562156]
[1739102019706,0.001,96674.0,96673.0,0.44562156]
[1739102023514,0.001,96674.0,96673.0,1.94562156]
[1739102024015,0.001,96674.0,96673.0,0.44562156]
[1739102025723,0.001,96674.0,96673.0,0.65245286]
[1739102034538,0.001,96674.0,96673.0,0.29165286]
[1739102034725,0.001,96674.0,96673.0,0.65245286]
[1739102035427,0.001,96674.0,96673.0,0.29165286]
[1739102035632,0.001,96674.0,96673.0,0.65245286]
[1739102035829,0.001,96674.0,96673.0,0.29165286]
[1739102036026,0.001,96674.0,96673.0,0.65245286]
[1739102037831,0.00015514,96683.0,96673.0,0.44562156]
[1739102038130,0.00015514,96683.0,96679.0,0.2068184]
[1739102039431,0.0617,96680.0,96679.0,0.2068184]
[1739102039631,0.0617,96680.0,96679.0,0.2078184]
[1739102040137,0.0617,96680.0,96679.0,0.2108184]
[1739102041738,0.04,96680.0,96679.0,0.2108184]
[1739102044335,0.0312,96680.0,96679.0,0.2108184]
[1739102045035,0.001,96680.0,96679.0,0.2108184]
[1739102045237,0.031,96693.0,96679.0,0.004]
[1739102045435,0.031,96693.0,96691.0,0.2067908]
[1739102045734,0.031,96693.0,96692.0,0.2743106]
[1739102046536,0.032,96693.0,96692.0,0.2743106]
[1739102047742,0.036,96693.0,96692.0,0.2743106]
[1739102048244,0.037,96693.0,96692.0,0.2743106]
[1739102048427,0.0699,96693.0,96692.0,0.2743106]
[1739102054249,0.0699,96693.0,96692.0,0.28697766]
[1739102057242,0.037,96693.0,96692.0,0.28697766]
[1739102058145,0.006,96693.0,96692.0,0.28697766]
[1739102067449,0.0317,96708.0,96692.0,0.08018706]
[1739102067659,0.0317,96708.0,96706.0,0.2067587]
[1739102067852,0.0317,96708.0,96707.0,0.2740386]
[1739102068545,0.0327,96708.0,96707.0,0.2740386]
[1739102069452,0.0357,96708.0,96707.0,0.2740386]
[1739102069946,0.0417,96708.0,96707.0,0.2740386]
[1739102070142,0.01,96708.0,96707.0,0.2740386]
[1739102070540,0.01,96708.0,96707.0,0.2750386]
[1739102073952,0.01,96708.0,96707.0,0.28774025]
[1739102090866,0.06026842,96708.0,96707.0,0.28774025]